bitfinex/quotes_SOLUSD_20220119
["timestamp","ask_amount","ask_price","bid_price","bid_amount"]
[1642590638597,0.25,135.64,135.53,11.0646]
[1642590639599,11.3136,135.64,135.53,11.0646]
[1642590639900,42.03356849,135.63,135.53,11.0646]
[1642590640101,2.95,135.63,135.53,11.0646]
[1642590640301,0.25,135.62,135.53,11.0646]
[1642590640801,11.3151,135.62,135.51,22.8864]
[1642590641000,2.95,135.61,135.51,11.82]
[1642590641201,35.89463541,135.6,135.51,11.82]
[1642590641604,0.25,135.6,135.51,11.82]
[1642590642501,11.0679,135.59,135.51,11.82]
[1642590642702,0.25,135.58,135.51,8.87]
[1642590643529,0.25,135.58,135.51,19.9371]
[1642590643730,2.951,135.62,135.51,19.9371]
[1642590643930,2.95,135.63,135.51,22.8871]
[1642590644134,7.11157007,135.65,135.51,24.22069136]
[1642590644331,6.0,135.64,135.51,47.32839136]
[1642590644530,2.95,135.63,135.51,47.32839136]
[1642590644730,40.80820224,135.62,135.51,47.32839136]
[1642590645231,0.25,135.61,135.51,47.32839136]
[1642590646035,0.25,135.62,135.51,47.32839136]
[1642590646232,2.95,135.63,135.51,47.32839136]
[1642590646433,4.16157007,135.65,135.55,11.0618]
[1642590646736,0.25,135.64,135.55,11.0618]
[1642590649240,8.949,135.65,135.55,11.0618]
[1642590649436,4.16157007,135.67,135.56,3.199]
[1642590649634,4.16157007,135.68,135.59,11.0592]
[1642590649836,8.33503095,135.68,135.59,11.0592]
[1642590650035,4.16157007,135.68,135.59,11.0592]
[1642590650236,49.14118015,135.68,135.59,11.0592]
[1642590650435,44.96771927,135.68,135.59,11.0592]
[1642590650637,2.949,135.67,135.59,11.0592]
[1642590650843,10.16157007,135.69,135.59,11.0592]
[1642590651040,4.16157007,135.69,135.59,11.0592]
[1642590651240,4.16157007,135.69,135.57,19.9314]
[1642590651440,2.949,135.68,135.57,19.9314]
[1642590651641,48.89358943,135.67,135.57,19.9314]
[1642590652241,13.11057007,135.68,135.57,19.9314]
[1642590652542,4.16157007,135.69,135.61,11.058]
[1642590652743,6.26534993,135.71,135.61,11.058]
[1642590652744,4.16157007,135.71,135.62,2.948]
[1642590652942,4.16157007,135.72,135.62,2.948]
[1642590653141,8.32963275,135.73,135.62,2.948]
[1642590653342,38.54520146,135.72,135.62,50.54369136]
[1642590653545,4.16157007,135.74,135.63,0.25]
[1642590653743,0.25,135.73,135.63,0.25]
[1642590653942,0.98340029,135.68,135.63,0.25]
[1642590654542,0.98340029,135.68,135.64,11.0544]
[1642590655746,0.00010029,135.68,135.65,0.25]
[1642590655945,0.00010029,135.68,135.66,11.051]
[1642590656548,38.82657264,135.76,135.66,11.051]
[1642590656748,41.77357264,135.76,135.66,11.051]
[1642590657148,0.25,135.75,135.66,11.051]
[1642590657350,2.947,135.74,135.66,11.051]
[1642590658150,40.16682571,135.73,135.66,11.051]
[1642590658350,40.41682571,135.73,135.66,11.051]
[1642590658553,0.25,135.73,135.66,11.051]
[1642590659954,0.25,135.73,135.63,32.4073]
[1642590660256,40.66186859,135.71,135.63,23.5373]
[1642590660456,2.948,135.72,135.62,46.2621]
[1642590660857,0.25,135.71,135.62,46.2621]
[1642590661256,0.25,135.71,135.62,57.3192]
[1642590662159,2.948,135.7,135.62,57.3192]
[1642590662560,0.25,135.69,135.62,57.3192]
[1642590663062,2.948,135.72,135.62,67.52279136]
[1642590663257,2.948,135.73,135.62,67.52279136]
[1642590663459,11.0554,135.75,135.62,67.52279136]
[1642590663659,43.11334993,135.79,135.62,67.52279136]
[1642590663660,2.947,135.78,135.63,6.25]
[1642590663870,4.16157007,135.81,135.67,11.049]
[1642590664061,2.947,135.83,135.68,16.92828867]
[1642590664261,4.53144113,135.84,135.69,132.7]
[1642590664563,0.36987106,135.84,135.71,132.7]
[1642590664760,4.16157007,135.89,135.73,133.01342062]
[1642590664960,2.946,135.9,135.76,11.0374]
[1642590665160,0.02921536,135.91,135.77,8.944]
[1642590665362,0.02921536,135.91,135.8,36.7901]
[1642590665561,0.02921536,135.91,135.81,16.62]
[1642590665760,2.944,135.9,135.82,2.944]
[1642590665963,0.02921536,135.91,135.83,10.62]
[1642590666164,0.02921536,135.91,135.84,11.0357]
[1642590666364,0.02921536,135.91,135.85,10.62]
[1642590666566,0.02921536,135.91,135.86,6.0]
[1642590666762,0.02921536,135.91,135.87,10.62]
[1642590667364,0.02921536,135.91,135.88,11.0341]
[1642590667963,0.02921536,135.91,135.83,10.62]
[1642590667964,52.20417692,135.9,135.83,10.62]
[1642590668164,0.25,135.89,135.82,10.62]
[1642590668365,41.35272214,135.87,135.81,2.943]
[1642590668567,2.944,135.86,135.81,2.943]
[1642590668767,3.194,135.86,135.76,47.3389]
[1642590669065,1.7738939,135.85,135.76,47.3389]
[1642590669264,44.51775781,135.84,135.68,2.945]
[1642590669500,44.51775781,135.84,135.71,8.84]
[1642590669501,3.195,135.84,135.71,8.84]
[1642590670070,0.25,135.84,135.72,2.946]
[1642590670271,0.25,135.84,135.73,57.1955]
[1642590670472,2.945,135.9,135.76,11.0433]
[1642590670673,2.945,135.9,135.77,11.784]
[1642590670876,0.25,135.89,135.79,36.7958]
[1642590671074,0.25,135.89,135.77,11.784]
[1642590671271,2.944,135.9,135.77,11.784]
[1642590671673,2.944,135.9,135.8,11.0388]
[1642590672074,2.944,135.9,135.78,48.521]
[1642590672277,2.944,135.9,135.78,57.361]
[1642590672874,2.944,135.9,135.78,68.4034]
[1642590673075,2.944,135.9,135.79,0.25]
[1642590673276,41.84586206,135.93,135.8,8.84]
[1642590673476,2.944,135.92,135.8,34.3155351]
[1642590673675,2.944,136.0,135.83,0.3121953]
[1642590673875,2.943,136.02,135.85,11.0341]
[1642590674178,2.943,136.02,135.86,64.8549]
[1642590674376,47.86418519,136.01,135.87,8.84]
[1642590674575,2.942,136.0,135.87,8.84]
[1642590674977,6.0,135.99,135.87,8.84]
[1642590675376,6.0,135.99,135.87,11.782]
[1642590675581,6.0,135.98,135.87,11.782]
[1642590675778,2.942,135.97,135.87,8.84]
[1642590675977,36.4174904,135.96,135.87,8.84]
[1642590676178,36.4174904,135.96,135.88,2.942]
[1642590676379,36.4174904,135.96,135.89,8.84]
[1642590676678,11.0362,136.0,135.89,8.84]
[1642590676881,2.942,136.02,135.89,8.84]
[1642590677099,6.0,136.01,135.89,11.781]
[1642590677305,2.942,136.01,135.89,8.84]
[1642590677604,41.66895048,136.01,135.89,8.84]
[1642590677804,13.9779,136.0,135.89,8.84]
[1642590678201,0.25,135.99,135.89,8.84]
[1642590679101,2.942,136.0,135.89,8.84]
[1642590679304,41.66895048,136.01,135.9,4.2946351]
[1642590679505,41.66895048,136.01,135.91,8.84]
[1642590679703,41.66895048,136.01,135.92,2.942]
[1642590679905,44.60995048,136.01,135.93,8.84]
[1642590680107,6.0,136.0,135.91,8.84]
[1642590680304,3.192,135.99,135.91,8.84]
[1642590680507,38.25276771,135.98,135.91,8.84]
[1642590680703,0.25,135.97,135.91,8.84]
[1642590680903,0.156,135.97,135.91,8.84]
[1642590681503,38.25276771,135.98,135.91,8.84]
[1642590682306,2.942,135.97,135.88,8.84]
[1642590682810,46.22589248,135.94,135.86,23.7159]
[1642590683007,2.943,135.93,135.86,23.7159]
[1642590683206,0.25,135.93,135.86,23.7159]
[1642590684007,0.25,135.93,135.84,8.84]
[1642590684210,43.92265533,135.91,135.84,8.84]
[1642590684408,2.943,135.9,135.84,8.84]
[1642590684610,0.25,135.9,135.84,8.84]
[1642590685007,0.25,135.9,135.81,8.84]
[1642590685412,43.92265533,135.91,135.81,8.84]
[1642590685610,43.92265533,135.91,135.82,2.944]
[1642590685809,43.92265533,135.91,135.83,8.84]
[1642590686108,43.92265533,135.91,135.84,2.943]
[1642590686512,0.25,135.9,135.84,2.943]
[1642590686715,2.943,135.9,135.84,2.943]
[1642590687411,2.943,135.97,135.85,8.84]
[1642590687614,4.99306013,136.01,135.85,8.84]
[1642590687811,22.336482,136.0,135.85,19.8777]
[1642590688015,14.242482,135.99,135.85,8.84]
[1642590688244,11.300482,135.98,135.85,8.84]
[1642590688413,43.3922185,135.96,135.85,8.84]
[1642590688614,2.943,135.95,135.85,8.84]
[1642590688814,0.25,135.94,135.85,8.84]
[1642590690113,6.14306013,135.95,135.85,19.8777]
[1642590690314,45.44227863,135.96,135.85,21.23472495]
[1642590690518,6.0,135.95,135.86,2.943]
[1642590690715,43.3922185,135.96,135.87,8.84]
[1642590690916,43.3922185,135.96,135.88,2.943]
[1642590691119,43.3922185,135.96,135.88,8.84]
[1642590691317,45.44227863,135.96,135.85,2.943]
[1642590691513,45.44227863,135.96,135.86,8.84]
[1642590691715,45.44227863,135.96,135.87,4.30002495]
[1642590691913,43.3922185,135.96,135.87,4.30002495]
[1642590692113,43.3922185,135.96,135.88,8.84]
[1642590692513,43.3922185,135.96,135.88,19.8752]
[1642590694016,74.48,135.95,135.88,19.8752]
[1642590694215,77.672,135.95,135.86,11.0366]
[1642590694420,79.72206013,135.95,135.85,32.8484]
[1642590694616,2.05006013,135.93,135.85,32.8484]
[1642590695017,2.05006013,135.95,135.86,2.943]
[1642590695215,2.05006013,135.96,135.86,13.9794]
[1642590695416,2.05006013,135.96,135.87,10.19702495]
[1642590695616,7.10357007,136.0,135.87,10.19702495]
[1642590695617,2.05006013,135.97,135.87,10.19702495]
[1642590695819,42.49422287,135.96,135.87,8.84]
[1642590696015,45.43722287,135.96,135.87,8.84]
[1642590696215,2.05006013,135.95,135.87,8.84]
[1642590696415,42.49422287,135.96,135.87,8.84]
[1642590696615,42.49422287,135.96,135.87,10.19702495]
[1642590696815,0.25,135.95,135.87,10.19702495]
[1642590697019,42.49422287,135.96,135.87,10.19702495]
[1642590697217,2.05006013,135.96,135.88,11.0351]
[1642590697417,2.05006013,135.97,135.87,13.13902495]
[1642590697617,2.05006013,135.97,135.87,10.19702495]
[1642590698218,47.01298064,135.96,135.87,10.19702495]
[1642590698421,0.25,135.96,135.87,21.23292495]
[1642590698623,2.05006013,135.97,135.87,36.99539102]
[1642590699226,0.25,135.96,135.87,24.17592495]
[1642590699424,58.94429482,135.96,135.87,10.19702495]
[1642590699624,2.05006013,135.95,135.87,8.84]
[1642590699823,37.60422599,135.93,135.87,8.84]
[1642590700425,37.60422599,135.93,135.87,10.19064804]
[1642590700829,37.60422599,135.93,135.87,8.84]
[1642590701226,0.25,135.92,135.87,8.84]
[1642590701425,0.25,135.92,135.83,8.84]
[1642590702224,0.25,135.92,135.83,32.69866607]
[1642590702929,39.65428612,135.93,135.84,0.25]
[1642590703127,37.60422599,135.93,135.85,8.84]
[1642590703363,37.60422599,135.93,135.86,11.0362]
[1642590703862,2.05006013,135.95,135.86,11.0362]
[1642590704066,2.05006013,135.95,135.86,23.85566607]
[1642590704263,2.05006013,135.95,135.87,19.8767]
[1642590704463,2.05006013,135.95,135.87,8.84]
[1642590705064,46.93488656,135.94,135.87,8.84]
[1642590705464,48.98494669,135.94,135.87,8.84]
[1642590705865,2.05006013,135.93,135.87,8.84]
[1642590706664,0.25,135.92,135.85,47.3344]
[1642590707266,2.05006013,135.91,135.83,2.943]
[1642590707466,4.99306013,135.91,135.83,2.943]
[1642590707766,47.45514257,135.9,135.83,2.943]
[1642590707971,4.99406013,135.89,135.83,2.943]
[1642590708167,42.93204432,135.87,135.83,2.943]
[1642590708366,2.944,135.86,135.83,2.943]
[1642590708572,38.70470489,135.84,135.83,2.943]
[1642590708773,38.95470489,135.84,135.83,2.943]
[1642590708968,6.06439993,135.85,135.83,2.943]
[1642590709166,6.06439993,135.85,135.77,21.64213274]
[1642590709367,6.06439993,135.85,135.78,2.945]
[1642590709665,6.06439993,135.85,135.78,15.74713274]
[1642590709865,48.49961773,135.84,135.78,15.74713274]
[1642590710069,48.49961773,135.84,135.78,12.80213274]
[1642590710267,2.05006013,135.88,135.78,12.80213274]
[1642590710467,0.25,135.87,135.78,12.80213274]
[1642590711270,45.38012281,135.87,135.78,12.80213274]
[1642590711570,56.42562281,135.87,135.78,12.80213274]
[1642590712172,2.944,135.86,135.78,12.80213274]
[1642590712570,11.0478,135.84,135.78,12.80213274]
[1642590712772,43.30490795,135.83,135.78,12.80213274]
[1642590713574,43.05490795,135.83,135.78,12.80213274]
[1642590714174,13.991,135.87,135.78,12.80213274]
[1642590714572,0.25,135.86,135.78,12.80213274]
[1642590715272,44.9995081,135.86,135.78,23.84673274]
[1642590715472,16.03866013,135.89,135.78,23.84673274]
[1642590715672,11.0446,135.89,135.79,12.80213274]
[1642590715872,11.0446,135.89,135.79,24.58613274]
[1642590716472,40.24436144,135.88,135.8,1.35064804]
[1642590717172,0.25,135.87,135.8,1.35064804]
[1642590719476,2.944,135.88,135.8,1.35064804]
[1642590719676,2.944,135.91,135.81,9.09]
[1642590719880,2.05006013,135.93,135.82,24.7364]
[1642590720075,2.944,135.91,135.82,34.92827118]
[1642590720277,2.944,135.92,135.82,34.92827118]
[1642590720477,11.0407,135.93,135.83,1.35187118]
[1642590720680,42.3931927,135.94,135.84,0.25]
[1642590720877,40.34313257,135.94,135.84,23.7906883]
[1642590721079,40.34313257,135.94,135.85,1.35187118]
[1642590721679,40.34313257,135.94,135.86,11.0383]
[1642590722087,40.34313257,135.94,135.87,1.35187118]
[1642590722680,40.34313257,135.94,135.87,12.38997118]
[1642590722881,40.34313257,135.94,135.87,1.35187118]
[1642590724479,40.34313257,135.94,135.88,8.84]
[1642590725080,40.34313257,135.94,135.89,1.35626573]
[1642590726091,0.25,135.93,135.89,12.39286573]
[1642590726281,40.34313257,135.94,135.89,12.39286573]
[1642590726481,40.34313257,135.94,135.9,10.19626573]
[1642590727582,0.25,135.93,135.9,10.19626573]
[1642590727781,43.3514198,135.91,135.9,8.84]
[1642590728186,4.99306013,135.95,135.9,8.84]
[1642590728386,0.25,135.94,135.9,8.84]
[1642590728888,2.943,135.95,135.9,10.19626573]
[1642590729086,2.942,135.97,135.9,10.19626573]
[1642590729293,36.72576146,135.95,135.9,10.19626573]
[1642590729514,2.942,135.98,135.9,10.19626573]
[1642590729717,2.942,135.98,135.9,21.23186573]
[1642590729914,4.99206013,136.0,135.9,28.02170998]
[1642590730113,2.05006013,136.01,135.91,3.26245262]
[1642590730314,2.05006013,136.02,135.91,48.34245262]
[1642590730513,39.0024728,136.02,135.92,32.29590939]
[1642590730914,39.0024728,136.02,135.93,8.14610998]
[1642590731114,39.0024728,136.02,135.94,19.8696]
[1642590731316,39.0024728,136.02,135.94,28.01570998]
[1642590731515,39.0024728,136.02,135.95,1.36370121]
[1642590731715,39.0024728,136.02,135.96,8.84]
[1642590731921,2.05006013,136.03,135.96,8.84]
[1642590732116,2.05006013,136.03,135.97,1.36370121]
[1642590732316,2.05006013,136.05,135.98,8.84]
[1642590732516,2.05006013,136.07,135.98,15.62984425]
[1642590732717,2.05006013,136.07,135.99,1.36370121]
[1642590732917,35.29512788,136.06,136.0,8.84]
[1642590733318,35.29512788,136.06,136.01,12.38720121]
[1642590733517,2.05006013,136.08,136.01,12.38720121]
[1642590733717,2.05006013,136.08,136.02,1.36370121]
[1642590733917,2.05006013,136.09,136.02,1.36370121]
[1642590734117,2.94,136.1,136.03,8.84]
[1642590734118,2.05006013,136.1,136.03,8.84]
[1642590734318,4.98906013,136.12,136.04,11.0207]
[1642590734520,48.21007286,136.11,136.04,11.0207]
[1642590734717,2.939,136.1,136.04,11.0207]
[1642590735022,6.0,136.09,136.01,11.97257422]
[1642590735221,46.27297269,136.08,136.01,10.6]
[1642590735620,46.27297269,136.08,135.99,10.6]
[1642590735818,0.25,136.07,135.97,1.37257422]
[1642590736018,2.94,136.06,135.98,10.6]
[1642590736218,46.1088598,136.05,135.94,10.6]
[1642590736418,2.941,136.04,135.94,10.6]
[1642590736618,2.941,136.04,135.94,11.97257422]
[1642590736818,0.25,136.03,135.94,11.97257422]
[1642590737025,49.23943342,136.01,135.94,11.97257422]
[1642590737221,3.191,136.0,135.94,11.97257422]
[1642590737420,0.25,136.0,135.94,11.97257422]
[1642590738920,49.23943342,136.01,135.94,11.97257422]
[1642590739323,49.23943342,136.01,135.94,1.37257422]
[1642590739525,2.05006013,136.06,135.95,11.771]
[1642590739723,0.25,136.05,135.95,22.7998]
[1642590739926,0.25,136.05,135.96,1.36613431]
[1642590740123,0.25,136.05,135.96,10.19613431]
[1642590740523,42.35921396,136.07,135.96,10.19613431]
[1642590740726,42.35921396,136.07,135.97,4.30272007]
[1642590740925,42.35921396,136.07,135.98,8.83]
[1642590741125,2.94,136.12,135.98,8.83]
[1642590741126,74.48,136.1,135.99,2.94]
[1642590741327,74.48,136.1,136.0,8.83]
[1642590741526,74.48,136.1,136.01,2.94]
[1642590741726,74.48,136.1,136.01,13.13272007]
[1642590741926,74.48,136.1,136.01,10.19272007]
[1642590742131,119.04866183,136.1,136.02,1.36272007]
[1642590742530,6.0,136.09,136.02,1.36272007]
[1642590743828,0.25,136.08,136.01,8.83]
[1642590744228,6.0,136.09,136.01,8.83]
[1642590744430,6.0,136.09,136.02,1.36272007]
[1642590745029,0.25,136.08,136.01,8.83]
[1642590745931,0.25,136.08,136.01,10.19272007]
[1642590746336,2.94,136.09,136.01,10.19272007]
[1642590746534,2.05006013,136.12,136.01,10.19272007]
[1642590746535,2.94,136.12,136.01,10.19272007]
[1642590746733,2.05006013,136.13,136.04,11.0215]
[1642590746734,0.25,136.11,136.04,11.0215]
[1642590747338,35.32836242,136.11,136.04,11.0215]
[1642590747735,41.59036242,136.11,136.03,8.83]
[1642590747938,2.939,136.1,136.03,8.83]
[1642590748344,0.25,136.09,136.03,8.83]
[1642590748535,38.01736242,136.11,136.03,8.83]
[1642590748735,35.07836242,136.11,136.03,10.19272007]
[1642590749134,35.07836242,136.11,136.03,8.83]
[1642590749539,37.12842255,136.11,136.03,8.83]
[1642590749735,2.939,136.1,136.03,8.83]
[1642590750336,35.07836242,136.11,136.03,10.19272007]
[1642590750735,0.25,136.1,136.03,10.19272007]
[1642590750936,0.25,136.1,136.03,8.83]
[1642590751135,40.5899707,136.08,136.03,8.83]
[1642590751335,2.939,136.07,135.99,8.83]
[1642590751537,0.25,136.07,135.99,8.83]
[1642590752337,0.25,136.07,135.94,15.64163059]
[1642590752639,39.09245194,136.05,135.95,8.83]
[1642590753140,0.25,136.04,135.95,10.19272007]
[1642590753337,2.941,136.03,135.95,8.83]
[1642590753538,41.58190703,136.02,135.95,8.83]
[1642590753737,41.83190703,136.02,135.93,1.36272007]
[1642590753938,2.941,136.01,135.93,1.36272007]
[1642590754541,4.99106013,136.05,135.94,8.83]
[1642590754739,2.05006013,136.05,135.95,0.25]
[1642590755040,2.941,136.09,135.96,11.771]
[1642590755041,2.05006013,136.06,135.96,11.771]
[1642590755242,2.05006013,136.06,135.96,31.20237236]
[1642590755441,2.05006013,136.06,135.97,12.70163059]
[1642590755642,2.05006013,136.08,135.98,11.77]
[1642590755846,2.05006013,136.1,135.98,24.47163059]
[1642590756038,2.05006013,136.1,135.99,1.36272007]
[1642590756340,44.885601,136.09,136.0,11.77]
[1642590756742,46.93566113,136.09,136.0,8.83]
[1642590756940,121.41566113,136.09,136.0,8.83]
[1642590757141,2.05006013,136.08,136.0,8.83]
[1642590757554,46.93566113,136.09,136.0,10.19272007]
[1642590757941,44.885601,136.09,136.0,10.19272007]
[1642590758345,46.93566113,136.09,136.0,10.19272007]
[1642590760945,46.93566113,136.09,136.0,8.83]
[1642590761146,2.05006013,136.08,136.0,8.83]
[1642590761350,2.05006013,136.08,136.01,1.36272007]
[1642590761747,2.05006013,136.08,136.02,8.83]
[1642590762047,2.05006013,136.08,136.02,10.19272007]
[1642590763147,2.05006013,136.07,136.02,8.83]
[1642590763388,40.82594605,136.06,136.02,8.83]
[1642590763990,2.05006013,136.07,136.02,8.83]
[1642590764692,2.05006013,136.08,136.02,8.83]
[1642590765290,2.05006013,136.08,136.03,1.36272007]
[1642590765493,2.05006013,136.09,136.03,10.19272007]
[1642590766391,37.26218467,136.07,136.03,8.83]
[1642590766591,37.26218467,136.07,136.01,1.36272007]
[1642590766793,37.26218467,136.07,135.96,6.72974177]
[1642590766794,42.2522448,136.07,135.96,32.30514177]
[1642590767015,2.05006013,136.06,135.97,8.83]
[1642590767190,2.30006013,136.06,135.97,10.19272007]
[1642590767391,2.05006013,136.05,135.97,10.19272007]
[1642590767592,2.05006013,136.05,135.97,21.53163059]
[1642590767796,2.05006013,136.09,135.98,1.36250438]
[1642590767994,2.05006013,136.09,135.99,8.83]
[1642590768192,2.05006013,136.08,135.99,20.16891052]
[1642590768391,2.05006013,136.09,136.0,2.94]
[1642590768592,38.25975086,136.09,136.01,8.83]
[1642590768992,2.05006013,136.08,136.01,8.83]
[1642590769192,4.99006013,136.08,136.01,8.83]
[1642590769391,2.05006013,136.07,136.01,8.83]
[1642590769591,48.24756966,136.06,135.96,8.83]
[1642590769791,0.25,136.05,135.96,8.83]
[1642590769991,2.30006013,136.05,135.96,8.83]
[1642590770596,43.57388305,136.03,135.96,8.83]
[1642590770893,3.191,136.02,135.93,56.1234]
[1642590771092,5.24106013,136.02,135.93,56.1234]
[1642590771292,4.99106013,136.02,135.93,56.1234]
[1642590771493,2.941,136.02,135.94,11.33891052]
[1642590771692,45.62394318,136.03,135.94,11.33891052]
[1642590771893,0.25,136.01,135.94,11.33891052]
[1642590772193,0.25,136.01,135.93,56.1234]
[1642590772194,2.941,136.0,135.93,8.83]
[1642590772393,36.89551673,135.99,135.93,8.83]
[1642590772594,2.942,135.98,135.93,8.83]
[1642590772794,0.25,135.97,135.93,8.83]
[1642590773393,0.25,135.97,135.87,84.9918102]
[1642590773394,0.25,135.97,135.87,73.9540102]
[1642590773593,0.25,135.97,135.88,20.16891052]
[1642590773793,74.73,135.98,135.91,1.35572689]
[1642590774196,0.25,135.98,135.91,1.35572689]
[1642590776099,2.942,135.99,135.91,1.35572689]
[1642590776298,2.942,136.01,135.92,8.83]
[1642590776500,8.05006013,136.02,135.92,11.772]
[1642590776699,6.0,136.02,135.93,12.69463741]
[1642590776898,6.0,136.02,135.94,8.83]
[1642590777103,109.36279683,136.01,135.94,8.83]
[1642590777900,11.0375,136.0,135.94,8.83]
[1642590778099,11.2875,136.0,135.94,8.83]
[1642590779701,11.0375,136.0,135.94,8.83]
[1642590780102,48.41043002,135.98,135.94,8.83]
[1642590781807,0.25,135.97,135.94,8.83]
[1642590782031,6.06439993,135.96,135.94,8.83]
[1642590782230,38.53891156,135.95,135.91,8.83]
[1642590782429,74.48,135.94,135.91,8.83]
[1642590782629,74.48,135.94,135.88,23.9541]
[1642590782630,11.0421,135.94,135.88,23.9541]
[1642590782835,0.25,135.93,135.88,23.9541]
[1642590783432,38.28891156,135.95,135.88,23.9541]
[1642590783630,0.25,135.94,135.88,25.30982689]
[1642590784433,11.0424,135.93,135.88,25.30982689]
[1642590784633,38.60459112,135.92,135.88,1.35572689]
[1642590784834,38.85459112,135.92,135.88,1.35572689]
[1642590785035,38.60459112,135.92,135.88,1.35572689]
[1642590785638,0.25,135.91,135.87,8.83]
[1642590787538,11.2937,135.91,135.87,8.83]
[1642590789240,11.2937,135.91,135.84,115.55572689]
[1642590789439,6.0,135.9,135.85,8.83]
[1642590789640,51.63364437,135.89,135.85,8.83]
[1642590789837,51.88364437,135.89,135.85,8.83]
[1642590790838,40.83744437,135.89,135.85,8.83]
[1642590793539,115.31744437,135.89,135.85,8.83]
[1642590793744,126.36324437,135.89,135.85,8.83]
[1642590795243,51.88324437,135.89,135.85,8.83]
[1642590795641,40.83744437,135.89,135.85,8.83]
[1642590796042,40.58744437,135.89,135.85,8.83]
[1642590797241,0.25,135.88,135.85,8.83]
[1642590797442,6.06439993,135.87,135.85,8.83]
[1642590797844,40.58744437,135.89,135.85,8.83]
[1642590797845,49.65907698,135.86,135.85,8.83]
[1642590798042,11.0444,135.91,135.85,8.83]
[1642590798243,2.943,135.92,135.85,10.18758628]
[1642590798444,4.99306013,135.96,135.85,21.5264968]
[1642590798644,2.05006013,135.98,135.85,21.5264968]
[1642590798946,14.49807162,136.0,135.87,0.31870785]
[1642590799144,48.62635666,135.99,135.88,11.772]
[1642590799344,48.62635666,135.99,135.9,11.0378]
[1642590799543,48.62635666,135.99,135.91,8.83]
[1642590799745,0.25,135.98,135.91,8.83]
[1642590799944,48.62635666,135.99,135.91,8.83]
[1642590800148,74.48,135.98,135.91,8.83]
[1642590800344,85.5195,135.98,135.91,8.83]
[1642590800944,2.942,135.97,135.91,8.83]
[1642590801147,35.99811582,135.96,135.91,8.83]
[1642590801344,36.24811582,135.96,135.91,8.83]
[1642590802246,16.54813175,136.0,135.92,1.35758628]
[1642590802448,8.86206013,136.0,135.94,11.0355]
[1642590802646,6.812,136.0,135.94,11.0355]
[1642590802845,6.812,136.0,135.95,1.35758628]
[1642590803455,6.812,136.0,135.95,10.18758628]
[1642590804050,6.812,136.0,135.95,1.35758628]
[1642590804449,6.812,136.0,135.96,11.0333]
[1642590805751,2.05006013,136.04,135.96,12.39088628]
[1642590805949,2.05006013,136.06,135.99,11.0303]
[1642590806253,2.94,136.05,135.99,11.0303]
[1642590806650,48.45932807,136.04,135.99,11.0303]
[1642590806850,48.45932807,136.04,135.97,10.61]
[1642590807050,2.941,136.03,135.97,10.61]
[1642590807849,2.05006013,136.05,135.97,11.96758628]
[1642590808049,2.05006013,136.08,135.97,23.00078628]
[1642590808250,2.05006013,136.09,135.97,30.19794798]
[1642590808451,4.99006013,136.09,135.97,41.5368585]
[1642590808749,44.78299376,136.08,135.97,30.19794798]
[1642590808949,2.05006013,136.06,135.97,21.6432]
[1642590809149,46.59604654,136.05,135.97,21.6432]
[1642590809352,46.84604654,136.05,135.97,21.6432]
[1642590809550,43.90604654,136.05,135.97,21.6432]
[1642590810149,43.65604654,136.05,135.97,21.6432]
[1642590810449,43.65604654,136.05,135.97,23.00078628]
[1642590811052,43.65604654,136.05,135.97,21.6432]
[1642590812752,43.65604654,136.05,135.97,23.00078628]